[Event "Titled Tuesday Blitz March 14 Early 2023"]
[White "Jiganchine, Roman"]
[Black "Begunov, Konstantin"]
[WhiteFideId "2603667"]
[BlackFideId "4118510"]
[WhiteElo "2327"]
[BlackElo "2079"]
[Result "1/2-1/2"]
[Round "09"]
[TimeControl "180+2"]
[Date "2023.03.14"]
[WhiteClock "0:00:09"]
[BlackClock "0:00:13"]

1. e4 {[%clk 0:03:00]}  c5 {[%clk 0:02:59]} 2. Nf3 {[%clk 0:02:57]}  d6 {[%clk 0:03:00]} 3. Bb5+ {[%clk 0:02:51]}  Bd7 {[%clk 0:02:59]} 4. Bxd7+ {[%clk 0:02:46]}  Qxd7 {[%clk 0:03:00]} 5. c4 {[%clk 0:02:40]}  Nf6 {[%clk 0:03:00]} 6. Nc3 {[%clk 0:02:38]}  Nc6 {[%clk 0:03:01]} 7. d4 {[%clk 0:02:29]}  cxd4 {[%clk 0:03:02]} 8. Nxd4 {[%clk 0:02:28]}  Qg4 {[%clk 0:03:02]} 9. Qxg4 {[%clk 0:02:06]}  Nxg4 {[%clk 0:03:03]} 10. Nxc6 {[%clk 0:01:49]}  bxc6 {[%clk 0:03:04]} 11. Bf4 {[%clk 0:01:46]}  g6 {[%clk 0:02:55]} 12. h3 {[%clk 0:01:45]}  Nf6 {[%clk 0:02:53]} 13. e5 {[%clk 0:01:42]}  dxe5 {[%clk 0:02:51]} 14. Bxe5 {[%clk 0:01:42]}  Bg7 {[%clk 0:02:49]} 15. O-O {[%clk 0:01:41]}  O-O {[%clk 0:02:48]} 16. Rad1 {[%clk 0:01:40]}  Rfd8 {[%clk 0:02:47]} 17. b3 {[%clk 0:01:38]}  Ne8 {[%clk 0:02:29]} 18. Bxg7 {[%clk 0:01:35]}  Kxg7 {[%clk 0:02:30]} 19. Ne4 {[%clk 0:01:32]}  e5 {[%clk 0:02:20]} 20. Rfe1 {[%clk 0:01:24]}  Nc7 {[%clk 0:02:19]} 21. Nc5 {[%clk 0:01:23]}  f6 {[%clk 0:02:15]} 22. Kf1 {[%clk 0:01:22]}  Kf7 {[%clk 0:02:15]} 23. Nb7 {[%clk 0:01:15]}  Rxd1 {[%clk 0:02:03]} 24. Rxd1 {[%clk 0:01:16]}  Ke7 {[%clk 0:02:00]} 25. Nc5 {[%clk 0:01:09]}  Rd8 {[%clk 0:02:00]} 26. Rxd8 {[%clk 0:01:08]}  Kxd8 {[%clk 0:02:01]} 27. Ke2 {[%clk 0:01:08]}  Ke7 {[%clk 0:01:59]} 28. Kd3 {[%clk 0:01:06]}  Kd6 {[%clk 0:01:59]} 29. Ne4+ {[%clk 0:01:02]}  Ke6 {[%clk 0:01:59]} 30. Nc5+ {[%clk 0:01:02]}  Kd6 {[%clk 0:01:59]} 31. Ne4+ {[%clk 0:01:01]}  Ke7 {[%clk 0:01:59]} 32. Nc5 {[%clk 0:01:01]}  f5 {[%clk 0:01:57]} 33. b4 {[%clk 0:01:00]}  Kd6 {[%clk 0:01:57]} 34. a4 {[%clk 0:00:55]}  h5 {[%clk 0:01:51]} 35. Nb7+ {[%clk 0:00:55]}  Ke6 {[%clk 0:01:48]} 36. Nc5+ {[%clk 0:00:53]}  Ke7 {[%clk 0:01:47]} 37. h4 {[%clk 0:00:51]}  Ne8 {[%clk 0:01:23]} 38. b5 {[%clk 0:00:38]}  Kd6 {[%clk 0:01:18]} 39. Nb7+ {[%clk 0:00:37]}  Kc7 {[%clk 0:01:17]} 40. Na5 {[%clk 0:00:31]}  cxb5 {[%clk 0:01:01]} 41. cxb5 {[%clk 0:00:32]}  Nd6 {[%clk 0:00:55]} 42. Nc4 {[%clk 0:00:32]}  Nf7 {[%clk 0:00:19]} 43. a5 {[%clk 0:00:27]}  Kb7 {[%clk 0:00:20]} 44. Kc3 {[%clk 0:00:27]}  Kc7 {[%clk 0:00:20]} 45. Kb4 {[%clk 0:00:26]}  e4 {[%clk 0:00:17]} 46. Kc5 {[%clk 0:00:25]}  g5 {[%clk 0:00:17]} 47. hxg5 {[%clk 0:00:20]}  Nxg5 {[%clk 0:00:17]} 48. Kd5 {[%clk 0:00:18]}  f4 {[%clk 0:00:14]} 49. Ke5 {[%clk 0:00:15]}  f3 {[%clk 0:00:14]} 50. gxf3 {[%clk 0:00:14]}  exf3 {[%clk 0:00:15]} 51. Kf4 {[%clk 0:00:13]}  Ne6+ {[%clk 0:00:15]} 52. Kxf3 {[%clk 0:00:14]}  Nd4+ {[%clk 0:00:16]} 53. Kf4 {[%clk 0:00:13]}  Nxb5 {[%clk 0:00:17]} 54. Kg5 {[%clk 0:00:13]}  Kc6 {[%clk 0:00:17]} 55. Kxh5 {[%clk 0:00:12]}  Kc5 {[%clk 0:00:18]} 56. Ne3 {[%clk 0:00:12]}  Kb4 {[%clk 0:00:18]} 57. f4 {[%clk 0:00:10]}  Kxa5 {[%clk 0:00:18]} 58. f5 {[%clk 0:00:10]}  Nd6 {[%clk 0:00:18]} 59. f6 {[%clk 0:00:10]}  Kb4 {[%clk 0:00:19]} 60. Kg6 {[%clk 0:00:10]}  a5 {[%clk 0:00:19]} 61. Nd5+ {[%clk 0:00:10]}  Kb3 {[%clk 0:00:18]} 62. Nb6 {[%clk 0:00:10]}  Kb4 {[%clk 0:00:16]} 63. Nd5+ {[%clk 0:00:09]}  Kc5 {[%clk 0:00:15]} 64. Nc3 {[%clk 0:00:09]}  Kc4 {[%clk 0:00:15]} 65. Na4 {[%clk 0:00:09]}  Kb5 {[%clk 0:00:14]} 66. Nc3+ {[%clk 0:00:09]}  Kb4 {[%clk 0:00:13]} 67. Nd5+ {[%clk 0:00:09]} 1/2-1/2


[Site "https://www.chess.com"]

[Event "Titled Tuesday Blitz March 14 Early 2023"]
[White "Zaksaite, Salomeja"]
[Black "Senft, Sean"]
[WhiteFideId "12801496"]
[BlackFideId "2044960"]
[WhiteElo "2059"]
[BlackElo "1989"]
[Result "1-0"]
[Round "09"]
[TimeControl "180+2"]
[Date "2023.03.14"]
[WhiteClock "0:00:10"]
[BlackClock "0:00:16"]

1. d4 {[%clk 0:03:00]}  d5 {[%clk 0:03:00]} 2. Nc3 {[%clk 0:03:00]}  Nf6 {[%clk 0:03:00]} 3. Bf4 {[%clk 0:02:59]}  c6 {[%clk 0:03:00]} 4. e3 {[%clk 0:02:55]}  Bf5 {[%clk 0:03:01]} 5. Bd3 {[%clk 0:02:53]}  Bg6 {[%clk 0:03:01]} 6. g4 {[%clk 0:02:52]}  e6 {[%clk 0:03:00]} 7. h4 {[%clk 0:02:49]}  Bxd3 {[%clk 0:03:00]} 8. cxd3 {[%clk 0:02:49]}  c5 {[%clk 0:03:00]} 9. dxc5 {[%clk 0:02:47]}  Bxc5 {[%clk 0:03:00]} 10. g5 {[%clk 0:02:41]}  Nfd7 {[%clk 0:02:59]} 11. Nf3 {[%clk 0:02:39]}  Nc6 {[%clk 0:02:59]} 12. d4 {[%clk 0:02:30]}  Bb4 {[%clk 0:02:57]} 13. O-O {[%clk 0:02:18]}  h6 {[%clk 0:02:53]} 14. Nb5 {[%clk 0:02:07]}  Rc8 {[%clk 0:02:44]} 15. a3 {[%clk 0:01:48]}  Be7 {[%clk 0:02:42]} 16. Nd6+ {[%clk 0:01:48]}  Bxd6 {[%clk 0:02:42]} 17. Bxd6 {[%clk 0:01:49]}  hxg5 {[%clk 0:02:42]} 18. hxg5 {[%clk 0:01:47]}  e5 {[%clk 0:01:57]} 19. dxe5 {[%clk 0:01:25]}  Ncxe5 {[%clk 0:01:12]} 20. Bxe5 {[%clk 0:01:24]}  Rc4 {[%clk 0:00:58]} 21. Qxd5 {[%clk 0:00:46]}  Rg4+ {[%clk 0:00:39]} 22. Bg3 {[%clk 0:00:46]}  Qc7 {[%clk 0:00:35]} 23. Kg2 {[%clk 0:00:25]}  Nb6 {[%clk 0:00:16]} 24. Qe4+ {[%clk 0:00:11]}  Kf8 {[%clk 0:00:16]} 25. Qxg4 {[%clk 0:00:10]} 1-0


[Site "https://www.chess.com"]

[Event "Titled Tuesday Blitz March 14 Early 2023"]
[White "Samaganova, Aleksandra"]
[Black "Matutururu, Maxman"]
[WhiteFideId "13800221"]
[BlackFideId "11004487"]
[WhiteElo "1858"]
[BlackElo "2427"]
[Result "0-1"]
[Round "09"]
[TimeControl "180+2"]
[Date "2023.03.14"]
[WhiteClock "0:00:04"]
[BlackClock "0:00:16"]

1. c4 {[%clk 0:03:00]}  c6 {[%clk 0:02:57]} 2. Nf3 {[%clk 0:02:58]}  Nf6 {[%clk 0:02:57]} 3. e3 {[%clk 0:02:58]}  d5 {[%clk 0:02:57]} 4. Nc3 {[%clk 0:02:57]}  e6 {[%clk 0:02:55]} 5. d4 {[%clk 0:02:54]}  Nbd7 {[%clk 0:02:55]} 6. Bd3 {[%clk 0:02:53]}  dxc4 {[%clk 0:02:56]} 7. Bxc4 {[%clk 0:02:53]}  b5 {[%clk 0:02:56]} 8. Bd3 {[%clk 0:02:53]}  a6 {[%clk 0:02:56]} 9. O-O {[%clk 0:02:47]}  c5 {[%clk 0:02:56]} 10. b3 {[%clk 0:02:43]}  Bb7 {[%clk 0:02:55]} 11. Bb2 {[%clk 0:02:38]}  Bd6 {[%clk 0:02:54]} 12. Re1 {[%clk 0:02:29]}  O-O {[%clk 0:02:52]} 13. e4 {[%clk 0:02:25]}  cxd4 {[%clk 0:02:51]} 14. Nxd4 {[%clk 0:02:24]}  Ne5 {[%clk 0:02:48]} 15. Bc2 {[%clk 0:02:15]}  Bc5 {[%clk 0:02:47]} 16. Nde2 {[%clk 0:02:02]}  Qb6 {[%clk 0:02:40]} 17. Rf1 {[%clk 0:01:51]}  Neg4 {[%clk 0:02:38]} 18. Qe1 {[%clk 0:01:45]}  Nxf2 {[%clk 0:02:11]} 19. Rxf2 {[%clk 0:01:45]}  Ng4 {[%clk 0:02:11]} 20. Nd1 {[%clk 0:01:45]}  Rad8 {[%clk 0:02:11]} 21. Nec3 {[%clk 0:01:39]}  b4 {[%clk 0:01:55]} 22. Na4 {[%clk 0:01:33]}  Rxd1 {[%clk 0:01:54]} 23. Qxd1 {[%clk 0:01:09]}  Bxf2+ {[%clk 0:01:28]} 24. Kh1 {[%clk 0:01:07]}  Qc7 {[%clk 0:01:28]} 25. Qxg4 {[%clk 0:01:05]}  f5 {[%clk 0:01:19]} 26. exf5 {[%clk 0:00:52]}  h5 {[%clk 0:01:16]} 27. Qg6 {[%clk 0:00:45]}  exf5 {[%clk 0:01:03]} 28. Bxf5 {[%clk 0:00:35]}  Rf7 {[%clk 0:00:38]} 29. Qh7+ {[%clk 0:00:27]}  Kf8 {[%clk 0:00:38]} 30. Rc1 {[%clk 0:00:17]}  Qf4 {[%clk 0:00:31]} 31. Bh3 {[%clk 0:00:07]}  Bd4 {[%clk 0:00:17]} 32. Rd1 {[%clk 0:00:04]}  Qf1+ {[%clk 0:00:16]} 0-1


[Site "https://www.chess.com"]

[Event "Titled Tuesday Blitz March 14 Early 2023"]
[White "Bas Mas, Jose Joaquin"]
[Black "Kalajzic, Ivan"]
[WhiteFideId "22219064"]
[BlackFideId "14506378"]
[WhiteElo "2233"]
[BlackElo "2203"]
[Result "1-0"]
[Round "09"]
[TimeControl "180+2"]
[Date "2023.03.14"]
[WhiteClock "0:00:36"]
[BlackClock "0:00:01"]

1. e4 {[%clk 0:03:00]}  Nc6 {[%clk 0:02:40]} 2. d4 {[%clk 0:03:00]}  d5 {[%clk 0:02:39]} 3. e5 {[%clk 0:02:57]}  f6 {[%clk 0:02:39]} 4. f4 {[%clk 0:02:54]}  Bf5 {[%clk 0:02:38]} 5. Nc3 {[%clk 0:02:49]}  e6 {[%clk 0:02:38]} 6. a3 {[%clk 0:02:47]}  Be4 {[%clk 0:02:35]} 7. Nxe4 {[%clk 0:02:43]}  dxe4 {[%clk 0:02:35]} 8. c3 {[%clk 0:02:39]}  a6 {[%clk 0:02:22]} 9. Bc4 {[%clk 0:02:34]}  Qd7 {[%clk 0:02:21]} 10. Ne2 {[%clk 0:02:26]}  Nh6 {[%clk 0:02:18]} 11. O-O {[%clk 0:02:22]}  f5 {[%clk 0:02:14]} 12. b4 {[%clk 0:02:17]}  Be7 {[%clk 0:02:13]} 13. Be3 {[%clk 0:02:09]}  Nd8 {[%clk 0:02:12]} 14. h3 {[%clk 0:02:07]}  c6 {[%clk 0:02:10]} 15. a4 {[%clk 0:02:06]}  O-O {[%clk 0:02:08]} 16. Qb3 {[%clk 0:02:03]}  Kh8 {[%clk 0:02:07]} 17. Kh1 {[%clk 0:01:54]}  Rc8 {[%clk 0:01:58]} 18. a5 {[%clk 0:01:52]}  Nhf7 {[%clk 0:01:56]} 19. g4 {[%clk 0:01:49]}  g6 {[%clk 0:01:49]} 20. Rg1 {[%clk 0:01:43]}  Re8 {[%clk 0:01:46]} 21. Rg2 {[%clk 0:01:41]}  Nh6 {[%clk 0:01:32]} 22. Rag1 {[%clk 0:01:38]}  Bh4 {[%clk 0:01:26]} 23. g5 {[%clk 0:01:32]}  Nhf7 {[%clk 0:01:19]} 24. Qd1 {[%clk 0:01:29]}  Rg8 {[%clk 0:00:46]} 25. Bf2 {[%clk 0:01:27]}  Bxf2 {[%clk 0:00:46]} 26. Rxf2 {[%clk 0:01:28]}  h5 {[%clk 0:00:45]} 27. h4 {[%clk 0:01:29]}  Kg7 {[%clk 0:00:44]} 28. Kg2 {[%clk 0:01:28]}  Qc7 {[%clk 0:00:35]} 29. Ng3 {[%clk 0:01:25]}  Rh8 {[%clk 0:00:33]} 30. Nf1 {[%clk 0:01:24]}  Ra8 {[%clk 0:00:34]} 31. Ne3 {[%clk 0:01:24]}  b5 {[%clk 0:00:34]} 32. axb6 {[%clk 0:01:23]}  Qxb6 {[%clk 0:00:34]} 33. Ra2 {[%clk 0:01:22]}  Nb7 {[%clk 0:00:32]} 34. Bxe6 {[%clk 0:01:19]}  Nfd8 {[%clk 0:00:29]} 35. Nxf5+ {[%clk 0:01:16]}  gxf5 {[%clk 0:00:28]} 36. Bxf5 {[%clk 0:01:17]}  a5 {[%clk 0:00:27]} 37. Bxe4 {[%clk 0:01:13]}  Ne6 {[%clk 0:00:26]} 38. Qf3 {[%clk 0:01:04]}  axb4 {[%clk 0:00:25]} 39. Rf2 {[%clk 0:01:05]}  Rhf8 {[%clk 0:00:18]} 40. f5 {[%clk 0:01:05]}  Nxd4 {[%clk 0:00:18]} 41. f6+ {[%clk 0:01:05]}  Kf7 {[%clk 0:00:17]} 42. Qxh5+ {[%clk 0:01:06]}  Ke6 {[%clk 0:00:17]} 43. Qg4+ {[%clk 0:01:01]}  Kxe5 {[%clk 0:00:16]} 44. Rf5+ {[%clk 0:00:58]}  Nxf5 {[%clk 0:00:15]} 45. Qxf5+ {[%clk 0:00:59]}  Kd6 {[%clk 0:00:16]} 46. Rd1+ {[%clk 0:00:59]}  Kc7 {[%clk 0:00:14]} 47. Qe5+ {[%clk 0:00:59]}  Nd6 {[%clk 0:00:09]} 48. Qxd6+ {[%clk 0:00:59]}  Kb7 {[%clk 0:00:09]} 49. Qd7+ {[%clk 0:00:54]}  Qc7 {[%clk 0:00:10]} 50. Bxc6+ {[%clk 0:00:53]}  Kb6 {[%clk 0:00:10]} 51. cxb4 {[%clk 0:00:45]}  Ra2+ {[%clk 0:00:10]} 52. Kf3 {[%clk 0:00:44]}  Qxc6+ {[%clk 0:00:03]} 53. Qxc6+ {[%clk 0:00:43]}  Kxc6 {[%clk 0:00:04]} 54. Kg4 {[%clk 0:00:43]}  Rb8 {[%clk 0:00:03]} 55. f7 {[%clk 0:00:39]}  Rxb4+ {[%clk 0:00:03]} 56. Kh5 {[%clk 0:00:38]}  Rf2 {[%clk 0:00:04]} 57. g6 {[%clk 0:00:35]}  Rff4 {[%clk 0:00:04]} 58. Kg5 {[%clk 0:00:34]}  Rg4+ {[%clk 0:00:03]} 59. Kf6 {[%clk 0:00:35]}  Rbf4+ {[%clk 0:00:02]} 60. Kg7 {[%clk 0:00:35]}  Rxh4 {[%clk 0:00:03]} 61. f8=Q {[%clk 0:00:35]}  Rxf8 {[%clk 0:00:03]} 62. Kxf8 {[%clk 0:00:36]}  Rf4+ {[%clk 0:00:03]} 63. Kg8 {[%clk 0:00:35]}  Kc7 {[%clk 0:00:02]} 64. g7 {[%clk 0:00:35]}  Kc8 {[%clk 0:00:02]} 65. Rh1 {[%clk 0:00:35]}  Kd7 {[%clk 0:00:02]} 66. Kh8 {[%clk 0:00:36]}  Rg4 {[%clk 0:00:01]} 67. g8=Q {[%clk 0:00:36]} 1-0


[Site "https://www.chess.com"]

[Event "Titled Tuesday Blitz March 14 Early 2023"]
[White "Larina, Maria"]
[Black "Sarkar, Justin"]
[WhiteFideId "24113182"]
[BlackFideId "2010011"]
[WhiteElo "1848"]
[BlackElo "2189"]
[Result "1-0"]
[Round "09"]
[TimeControl "180+2"]
[Date "2023.03.14"]
[WhiteClock "0:00:24"]
[BlackClock "0:00:04"]

1. e4 {[%clk 0:03:00]}  e5 {[%clk 0:02:38]} 2. Nf3 {[%clk 0:03:00]}  Nc6 {[%clk 0:02:28]} 3. Nc3 {[%clk 0:03:00]}  Nf6 {[%clk 0:02:23]} 4. Bb5 {[%clk 0:03:00]}  Bb4 {[%clk 0:02:11]} 5. O-O {[%clk 0:02:59]}  O-O {[%clk 0:02:07]} 6. d3 {[%clk 0:02:59]}  Bxc3 {[%clk 0:02:00]} 7. bxc3 {[%clk 0:03:00]}  d6 {[%clk 0:01:56]} 8. Bg5 {[%clk 0:02:59]}  Bg4 {[%clk 0:01:37]} 9. h3 {[%clk 0:02:57]}  Bh5 {[%clk 0:01:35]} 10. Qe2 {[%clk 0:02:33]}  h6 {[%clk 0:01:15]} 11. Bh4 {[%clk 0:02:31]}  g5 {[%clk 0:01:11]} 12. Bg3 {[%clk 0:02:21]}  Ne7 {[%clk 0:01:09]} 13. d4 {[%clk 0:02:14]}  Ng6 {[%clk 0:01:01]} 14. Qe3 {[%clk 0:01:58]}  Qe7 {[%clk 0:00:49]} 15. Rfe1 {[%clk 0:01:43]}  Nf4 {[%clk 0:00:44]} 16. Kh2 {[%clk 0:01:23]}  c6 {[%clk 0:00:31]} 17. Bf1 {[%clk 0:01:22]}  Bg6 {[%clk 0:00:20]} 18. Nd2 {[%clk 0:01:14]}  h5 {[%clk 0:00:16]} 19. Bxf4 {[%clk 0:01:01]}  gxf4 {[%clk 0:00:14]} 20. Qe2 {[%clk 0:00:53]}  Kg7 {[%clk 0:00:12]} 21. g3 {[%clk 0:00:42]}  fxg3+ {[%clk 0:00:10]} 22. fxg3 {[%clk 0:00:43]}  h4 {[%clk 0:00:09]} 23. Qf3 {[%clk 0:00:36]}  hxg3+ {[%clk 0:00:08]} 24. Qxg3 {[%clk 0:00:37]}  Rae8 {[%clk 0:00:08]} 25. Bg2 {[%clk 0:00:37]}  Nh5 {[%clk 0:00:08]} 26. Qf2 {[%clk 0:00:33]}  Nf4 {[%clk 0:00:07]} 27. Bf3 {[%clk 0:00:31]}  Rh8 {[%clk 0:00:06]} 28. Bg4 {[%clk 0:00:28]}  Qg5 {[%clk 0:00:06]} 29. Rg1 {[%clk 0:00:26]}  Qh6 {[%clk 0:00:05]} 30. Rg3 {[%clk 0:00:26]}  Reg8 {[%clk 0:00:05]} 31. dxe5 {[%clk 0:00:25]}  dxe5 {[%clk 0:00:04]} 32. Nf3 {[%clk 0:00:24]} 1-0


[Site "https://www.chess.com"]

[Event "Titled Tuesday Blitz March 14 Early 2023"]
[White "Clawitter, Craig"]
[Black "Bilan, Danila"]
[WhiteFideId "2023105"]
[BlackFideId "24161918"]
[WhiteElo "2246"]
[BlackElo "2182"]
[Result "1-0"]
[Round "09"]
[TimeControl "180+2"]
[Date "2023.03.14"]
[WhiteClock "0:00:03"]
[BlackClock "0:00:16"]

1. e4 {[%clk 0:03:00]}  c6 {[%clk 0:02:59]} 2. d4 {[%clk 0:02:59]}  d5 {[%clk 0:03:00]} 3. e5 {[%clk 0:03:00]}  c5 {[%clk 0:02:59]} 4. dxc5 {[%clk 0:02:59]}  Nc6 {[%clk 0:02:59]} 5. Nf3 {[%clk 0:02:53]}  Bg4 {[%clk 0:02:59]} 6. a3 {[%clk 0:02:50]}  e6 {[%clk 0:02:57]} 7. Be3 {[%clk 0:02:08]}  Bxf3 {[%clk 0:02:45]} 8. Qxf3 {[%clk 0:02:07]}  Nxe5 {[%clk 0:02:44]} 9. Qg3 {[%clk 0:02:07]}  Nd7 {[%clk 0:02:38]} 10. c4 {[%clk 0:01:52]}  Ngf6 {[%clk 0:02:34]} 11. Nc3 {[%clk 0:01:50]}  Qb8 {[%clk 0:02:07]} 12. cxd5 {[%clk 0:01:44]}  Qxg3 {[%clk 0:02:02]} 13. hxg3 {[%clk 0:01:41]}  Bxc5 {[%clk 0:01:56]} 14. dxe6 {[%clk 0:01:37]}  fxe6 {[%clk 0:01:53]} 15. Bxc5 {[%clk 0:01:33]}  Nxc5 {[%clk 0:01:54]} 16. Bb5+ {[%clk 0:01:24]}  Ke7 {[%clk 0:01:34]} 17. O-O-O {[%clk 0:00:56]}  Rhd8 {[%clk 0:01:27]} 18. f3 {[%clk 0:00:47]}  h6 {[%clk 0:01:08]} 19. Rhe1 {[%clk 0:00:43]}  Rac8 {[%clk 0:00:48]} 20. Kb1 {[%clk 0:00:32]}  Nb3 {[%clk 0:00:38]} 21. Rxd8 {[%clk 0:00:15]}  Rxd8 {[%clk 0:00:35]} 22. Ba4 {[%clk 0:00:12]}  Nd4 {[%clk 0:00:32]} 23. Rd1 {[%clk 0:00:08]}  a6 {[%clk 0:00:31]} 24. Bc2 {[%clk 0:00:06]}  Rd6 {[%clk 0:00:24]} 25. Ne4 {[%clk 0:00:05]}  Nxe4 {[%clk 0:00:23]} 26. Bxe4 {[%clk 0:00:05]}  b5 {[%clk 0:00:22]} 27. Rd3 {[%clk 0:00:04]}  e5 {[%clk 0:00:18]} 28. f4 {[%clk 0:00:04]}  Ne6 {[%clk 0:00:17]} 29. fxe5 {[%clk 0:00:03]}  Rxd3 {[%clk 0:00:16]} 30. Bxd3 {[%clk 0:00:03]}  Nc5 {[%clk 0:00:16]} 31. Bf5 {[%clk 0:00:02]}  Nd7 {[%clk 0:00:11]} 32. Bxd7 {[%clk 0:00:01]}  Kxd7 {[%clk 0:00:12]} 33. Kc2 {[%clk 0:00:01]}  Ke6 {[%clk 0:00:12]} 34. Kc3 {[%clk 0:00:02]}  Kxe5 {[%clk 0:00:09]} 35. Kb4 {[%clk 0:00:02]}  g6 {[%clk 0:00:07]} 36. Ka5 {[%clk 0:00:02]}  b4 {[%clk 0:00:07]} 37. Kxb4 {[%clk 0:00:01]}  Ke4 {[%clk 0:00:07]} 38. Ka5 {[%clk 0:00:01]}  Ke3 {[%clk 0:00:08]} 39. Kxa6 {[%clk 0:00:01]}  Kf2 {[%clk 0:00:08]} 40. b4 {[%clk 0:00:02]}  Kxg3 {[%clk 0:00:08]} 41. b5 {[%clk 0:00:03]}  Kxg2 {[%clk 0:00:07]} 42. b6 {[%clk 0:00:04]}  h5 {[%clk 0:00:08]} 43. b7 {[%clk 0:00:04]}  h4 {[%clk 0:00:09]} 44. b8=Q {[%clk 0:00:05]}  h3 {[%clk 0:00:10]} 45. Qb7+ {[%clk 0:00:05]}  Kg3 {[%clk 0:00:10]} 46. Qh1 {[%clk 0:00:04]}  g5 {[%clk 0:00:10]} 47. Kb5 {[%clk 0:00:03]}  g4 {[%clk 0:00:11]} 48. a4 {[%clk 0:00:03]}  Kh4 {[%clk 0:00:12]} 49. a5 {[%clk 0:00:03]}  g3 {[%clk 0:00:13]} 50. a6 {[%clk 0:00:04]}  g2 {[%clk 0:00:14]} 51. Qh2 {[%clk 0:00:04]}  Kg4 {[%clk 0:00:13]} 52. a7 {[%clk 0:00:04]}  g1=Q {[%clk 0:00:14]} 53. Qxg1+ {[%clk 0:00:03]}  Kh4 {[%clk 0:00:15]} 54. a8=Q {[%clk 0:00:03]}  h2 {[%clk 0:00:16]} 1-0


[Site "https://www.chess.com"]

[Event "Titled Tuesday Blitz March 14 Early 2023"]
[White "Kraus, Tomas"]
[Black "Martin, Lewis"]
[WhiteFideId "331708"]
[BlackFideId "410551"]
[WhiteElo "2389"]
[BlackElo "2145"]
[Result "0-1"]
[Round "09"]
[TimeControl "180+2"]
[Date "2023.03.14"]
[WhiteClock "0:00:10"]
[BlackClock "0:00:15"]

1. e4 {[%clk 0:02:58]}  c5 {[%clk 0:02:46]} 2. Nc3 {[%clk 0:02:57]}  Nc6 {[%clk 0:02:46]} 3. f4 {[%clk 0:02:58]}  e6 {[%clk 0:02:41]} 4. Nf3 {[%clk 0:02:58]}  Nf6 {[%clk 0:02:40]} 5. d3 {[%clk 0:02:58]}  d5 {[%clk 0:02:39]} 6. e5 {[%clk 0:02:56]}  d4 {[%clk 0:02:36]} 7. exf6 {[%clk 0:02:53]}  dxc3 {[%clk 0:02:35]} 8. fxg7 {[%clk 0:02:42]}  Bxg7 {[%clk 0:02:35]} 9. b3 {[%clk 0:02:42]}  b5 {[%clk 0:02:24]} 10. g3 {[%clk 0:02:40]}  Bb7 {[%clk 0:02:23]} 11. Bg2 {[%clk 0:02:40]}  Ne7 {[%clk 0:02:15]} 12. O-O {[%clk 0:02:38]}  O-O {[%clk 0:02:13]} 13. Be3 {[%clk 0:02:34]}  Qc7 {[%clk 0:02:12]} 14. Ng5 {[%clk 0:02:18]}  Bxg2 {[%clk 0:02:10]} 15. Kxg2 {[%clk 0:02:19]}  Nf5 {[%clk 0:02:06]} 16. Bf2 {[%clk 0:02:12]}  h6 {[%clk 0:01:58]} 17. Ne4 {[%clk 0:02:07]}  c4 {[%clk 0:01:58]} 18. g4 {[%clk 0:01:26]}  Ne7 {[%clk 0:01:40]} 19. Bc5 {[%clk 0:01:17]}  Rfd8 {[%clk 0:01:36]} 20. Rf3 {[%clk 0:01:13]}  Ng6 {[%clk 0:01:32]} 21. f5 {[%clk 0:00:51]}  exf5 {[%clk 0:01:25]} 22. gxf5 {[%clk 0:00:50]}  Nh4+ {[%clk 0:01:24]} 23. Kf2 {[%clk 0:00:46]}  Qxh2+ {[%clk 0:01:22]} 24. Ke3 {[%clk 0:00:44]}  Nxf3 {[%clk 0:01:13]} 25. Qxf3 {[%clk 0:00:44]}  cxd3 {[%clk 0:01:07]} 26. Rh1 {[%clk 0:00:41]}  dxc2 {[%clk 0:00:58]} 27. f6 {[%clk 0:00:32]}  Qxh1 {[%clk 0:00:32]} 28. Qg4 {[%clk 0:00:05]}  Qe1+ {[%clk 0:00:29]} 29. Kf3 {[%clk 0:00:02]}  Rd3+ {[%clk 0:00:28]} 30. Kg2 {[%clk 0:00:02]}  Rd2+ {[%clk 0:00:15]} 31. Nf2 {[%clk 0:00:02]}  Rxf2+ {[%clk 0:00:02]} 32. Bxf2 {[%clk 0:00:03]}  Qe4+ {[%clk 0:00:02]} 33. Qxe4 {[%clk 0:00:02]}  c1=Q {[%clk 0:00:02]} 34. Qg4 {[%clk 0:00:03]}  Qg5 {[%clk 0:00:01]} 35. Qxg5 {[%clk 0:00:02]}  hxg5 {[%clk 0:00:02]} 36. Kf3 {[%clk 0:00:02]}  Bxf6 {[%clk 0:00:02]} 37. Kg4 {[%clk 0:00:03]}  Be5 {[%clk 0:00:02]} 38. Kf5 {[%clk 0:00:04]}  Bd4 {[%clk 0:00:03]} 39. Bxd4 {[%clk 0:00:04]}  c2 {[%clk 0:00:04]} 40. Be3 {[%clk 0:00:04]}  c1=Q {[%clk 0:00:04]} 41. Bxc1 {[%clk 0:00:05]}  Rc8 {[%clk 0:00:05]} 42. Bxg5 {[%clk 0:00:05]}  Rc2 {[%clk 0:00:06]} 43. Bf6 {[%clk 0:00:05]}  Rxa2 {[%clk 0:00:07]} 44. b4 {[%clk 0:00:06]}  Ra4 {[%clk 0:00:07]} 45. Be7 {[%clk 0:00:06]}  a5 {[%clk 0:00:07]} 46. bxa5 {[%clk 0:00:06]}  Rxa5 {[%clk 0:00:08]} 47. Ke5 {[%clk 0:00:07]}  Ra1 {[%clk 0:00:09]} 48. Kd4 {[%clk 0:00:07]}  Re1 {[%clk 0:00:09]} 49. Bd6 {[%clk 0:00:06]}  Re6 {[%clk 0:00:10]} 50. Bb4 {[%clk 0:00:06]}  Kh7 {[%clk 0:00:11]} 51. Kc5 {[%clk 0:00:06]}  Kg6 {[%clk 0:00:11]} 52. Kxb5 {[%clk 0:00:06]}  f5 {[%clk 0:00:12]} 53. Kc4 {[%clk 0:00:07]}  Re4+ {[%clk 0:00:11]} 54. Kb3 {[%clk 0:00:06]}  Rxb4+ {[%clk 0:00:12]} 55. Kxb4 {[%clk 0:00:07]}  Kg5 {[%clk 0:00:13]} 56. Kc3 {[%clk 0:00:08]}  Kf4 {[%clk 0:00:14]} 57. Kd2 {[%clk 0:00:08]}  Kg3 {[%clk 0:00:14]} 58. Ke2 {[%clk 0:00:09]}  Kg2 {[%clk 0:00:15]} 59. Ke3 {[%clk 0:00:09]}  Kg3 {[%clk 0:00:15]} 60. Ke2 {[%clk 0:00:10]}  f4 {[%clk 0:00:15]} 61. Kf1 {[%clk 0:00:10]}  Kf3 {[%clk 0:00:15]} 62. Ke1 {[%clk 0:00:10]}  Kg2 {[%clk 0:00:15]} 0-1


[Site "https://www.chess.com"]